[Event "Kragero Resort A 2020"]
[Site "Kragero"]
[Date "2020.02.21"]
[Round "6.23"]
[White "Radeva, Viktoria"]
[Black "Unneland, Mathias"]
[Result "1-0"]
[ECO "B33"]
[WhiteElo "2320"]
[BlackElo "2175"]
[Annotator "ChessBase"]
[PlyCount "105"]
[EventDate "2020.02.19"]
[EventType "swiss"]
[EventCountry "NOR"]
[SourceTitle "playchess.com"]
[Source "ChessBase"]
[SourceQuality "1"]
[TimeControl "5400+30"]

1. e4 {[%emt 0:00:19]} c5 {[%emt 0:00:00]} 2. Nf3 {[%emt 0:00:05]} Nc6 {[%emt 0:00:00]} 3. d4 {[%emt 0:00:10]} cxd4 {[%emt 0:00:00]} 4. Nxd4 {[%emt 0:00:03]} Nf6 {[%emt 0:00:13]} 5. Nc3 {[%emt 0:00:04]} e5 {[%emt 0:00:10]} 6. Ndb5 {[%emt 0:01:42]} d6 {[%emt 0:00:10]} 7. Bg5 {[%emt 0:00:04]} a6 {[%emt 0:00:12]} 8. Na3 {[%emt 0:00:08]} b5 {[%emt 0:00:11]} 9. Nd5 {[%emt 0:00:20]} Be7 {[%emt 0:00:11]} 10. Bxf6 {[%emt 0:00:05]} Bxf6 {[%emt 0:00:08]} 11. c3 {[%emt 0:00:05]} O-O {[%emt 0:00:13]} 12. Nc2 {[%emt 0:00:20]} Rb8 {[%emt 0:00:08]} 13. Bd3 {[%emt 0:12:31]} Bg5 {[%emt 0:00:56]} 14. O-O {[%emt 0:03:14]} Ne7 {[%emt 0:02:48]} 15. Nce3 {[%emt 0:03:43]} Nxd5 {[%emt 0:02:06]} 16. Nxd5 {[%emt 0:00:07]} Be6 {[%emt 0:00:25]} 17. Bc2 {[%emt 0:01:19]} g6 {[%emt 0:00:41]} 18. Qd3 {[%emt 0:04:19]} Kh8 {[%emt 0:03:14]} 19. Rad1 {[%emt 0:02:35]} a5 {[%emt 0:01:44]} 20. Rfe1 {[%emt 0:04:58]} Bxd5 {[%emt 0:07:02]} 21. Qxd5 {[%emt 0:00:14]} Rb6 {[%emt 0:00:09]} 22. Bd3 {[%emt 0:07:22]} Qb8 {[%emt 0:00:54]} 23. Be2 {[%emt 0:00:49]} Kg7 {[%emt 0:00:49]} 24. Bg4 {[%emt 0:10:41]} Re8 {[%emt 0:01:21]} 25. Rd3 {[%emt 0:03:46]} Re7 {[%emt 0:02:04]} 26. g3 {[%emt 0:02:43]} h5 {[%emt 0:01:05]} 27. Bd1 {[%emt 0:04:29]} Qb7 {[%emt 0:00:25]} 28. Bb3 {[%emt 0:03:18]} Qxd5 {[%emt 0:01:20]} 29. Bxd5 {[%emt 0:00:05]} Rc7 {[%emt 0:00:56]} 30. Red1 {[%emt 0:00:44]} Kf8 {[%emt 0:01:00]} 31. Rf3 {[%emt 0:02:41]} Kg7 {[%emt 0:00:09]} 32. h4 {[%emt 0:01:59]} Bd8 {[%emt 0:00:57]} 33. Kg2 {[%emt 0:01:14]} Re7 {[%emt 0:01:03]} 34. Kh3 {[%emt 0:01:10]} Rb8 {[%emt 0:01:10]} 35. g4 {[%emt 0:02:08]} hxg4+ {[%emt 0:00:07]} 36. Kxg4 {[%emt 0:00:05]} Bb6 {[%emt 0:00:21]} 37. Rh1 {[%emt 0:08:37]} Bc5 {[%emt 0:02:38]} 38. h5 {[%emt 0:06:25]} Rh8 {[%emt 0:00:21]} 39. Kg5 {[%emt 0:01:39]} Rxh5+ {[%emt 0:01:02]} 40. Rxh5 {[%emt 0:00:03]} gxh5 {[%emt 0:00:06]} 41. Kxh5 {[%emt 0:00:13]} b4 {[%emt 0:00:47]} 42. cxb4 {[%emt 0:01:19]} Bxb4 {[%emt 0:00:53]} 43. Kg5 {[%emt 0:00:52]} Bd2+ {[%emt 0:00:44]} 44. Kf5 {[%emt 0:00:26]} f6 {[%emt 0:01:11]} 45. Rg3+ {[%emt 0:00:14]} Bg5 {[%emt 0:00:12]} 46. Rc3 {[%emt 0:00:48]} Bd2 {[%emt 0:00:34]} 47. Rc6 {[%emt 0:00:54]} Bb4 {[%emt 0:00:28]} 48. Rc8 {[%emt 0:00:09]} Be1 {[%emt 0:00:58]} 49. Rg8+ {[%emt 0:00:58]} Kh7 {[%emt 0:00:37]} 50. Kxf6 {[%emt 0:00:59]} Rc7 {[%emt 0:00:14]} 51. Rg1 {[%emt 0:00:26]} Bd2 {[%emt 0:00:08]} 52. Rh1+ {[%emt 0:00:03]} Bh6 {[%emt 0:00:08]} 53. Be6 {[%emt 0:00:07]} 1-0

[Event "Kragero Resort A 2020"]
[Site "Kragero"]
[Date "2020.02.21"]
[Round "6.25"]
[White "Ranaldi, Lucas"]
[Black "Woithe, Daniel"]
[Result "1-0"]
[ECO "A13"]
[WhiteElo "2302"]
[BlackElo "2067"]
[Annotator "ChessBase"]
[PlyCount "61"]
[EventDate "2020.02.19"]
[EventType "swiss"]
[EventCountry "NOR"]
[SourceTitle "playchess.com"]
[Source "ChessBase"]
[SourceQuality "1"]
[TimeControl "5400+30"]

1. c4 {[%emt 0:00:00]} Nf6 {[%emt 0:00:00]} 2. Nf3 {[%emt 0:00:00]} e6 {[%emt 0:00:00]} 3. b3 {[%emt 0:00:28]} d5 {[%emt 0:00:00]} 4. Bb2 {[%emt 0:00:09]} c5 {[%emt 0:00:11]} 5. e3 {[%emt 0:00:54]} Nc6 {[%emt 0:00:31]} 6. cxd5 {[%emt 0:00:12]} exd5 {[%emt 0:02:57]} 7. Be2 {[%emt 0:00:10]} d4 {[%emt 0:04:32]} 8. Bb5 {[%emt 0:00:08]} Bd7 {[%emt 0:06:13]} 9. exd4 {[%emt 0:09:50]} Nxd4 {[%emt 0:03:01]} 10. Nxd4 {[%emt 0:01:03]} cxd4 {[%emt 0:00:09]} 11. Qe2+ {[%emt 0:01:16]} Be7 {[%emt 0:00:19]} 12. Bxd4 {[%emt 0:18:04]} O-O {[%emt 0:00:27]} 13. Bxd7 {[%emt 0:02:42]} Qxd7 {[%emt 0:00:20]} 14. Bc3 {[%emt 0:00:43]} Bd6 {[%emt 0:32:51]} 15. O-O {[%emt 0:00:43]} Rae8 {[%emt 0:03:40]} 16. Qf3 {[%emt 0:15:55]} Ng4 {[%emt 0:11:26]} 17. g3 {[%emt 0:00:47]} f5 {[%emt 0:02:34]} 18. h3 {[%emt 0:01:21]} Bc5 {[%emt 0:23:28]} 19. d4 {[%emt 0:18:18]} Bxd4 {[%emt 0:00:28]} 20. hxg4 {[%emt 0:05:51]} fxg4 {[%emt 0:00:01]} 21. Qg2 {[%emt 0:00:16]} Re2 {[%emt 0:02:32]} 22. Bxd4 {[%emt 0:00:21]} Qxd4 {[%emt 0:00:05]} 23. Na3 {[%emt 0:00:23]} Rfxf2 {[%emt 0:04:14]} 24. Rxf2 {[%emt 0:00:08]} Qxa1+ {[%emt 0:00:17]} 25. Kh2 {[%emt 0:00:01]} Re5 {[%emt 0:00:15]} 26. Rf1 {[%emt 0:04:14]} Qc3 {[%emt 0:01:24]} 27. Nc4 {[%emt 0:15:58]} Rh5+ {[%emt 0:00:06]} 28. Kg1 {[%emt 0:00:05]} Qd4+ {[%emt 0:00:49]} 29. Qf2 {[%emt 0:00:43]} Qxf2+ {[%emt 0:00:25]} 30. Rxf2 {[%emt 0:00:08]} Rd5 {[%emt 0:00:13]} 31. Rd2 {[%emt 0:01:09]} 1-0

[Event "Kragero Resort A 2020"]
[Site "Kragero"]
[Date "2020.02.21"]
[Round "6.26"]
[White "Tunsjo, Axel"]
[Black "Khachatryan, Vahagn"]
[Result "0-1"]
[ECO "B03"]
[WhiteElo "2035"]
[BlackElo "2276"]
[Annotator "ChessBase"]
[PlyCount "64"]
[EventDate "2020.02.19"]
[EventType "swiss"]
[EventCountry "NOR"]
[SourceTitle "playchess.com"]
[Source "ChessBase"]
[SourceQuality "1"]
[TimeControl "5400+30"]

1. e4 {[%emt 0:00:00]} Nf6 {[%emt 0:00:00]} 2. e5 {[%emt 0:00:26]} Nd5 {[%emt 0:00:00]} 3. d4 {[%emt 0:00:07]} d6 {[%emt 0:00:00]} 4. c4 {[%emt 0:00:16]} Nb6 {[%emt 0:00:00]} 5. exd6 {[%emt 0:00:08]} cxd6 {[%emt 0:00:00]} 6. Nc3 {[%emt 0:01:01]} g6 {[%emt 0:00:35]} 7. Be3 {[%emt 0:01:43]} Bg7 {[%emt 0:00:07]} 8. Rc1 {[%emt 0:00:10]} O-O {[%emt 0:00:08]} 9. Be2 {[%emt 0:01:48]} d5 {[%emt 0:04:20]} 10. c5 {[%emt 0:01:45]} Nc4 {[%emt 0:00:05]} 11. Bxc4 {[%emt 0:01:01]} dxc4 {[%emt 0:00:01]} 12. Nge2 {[%emt 0:00:40]} Nc6 {[%emt 0:03:20]} 13. O-O {[%emt 0:00:40]} Bf5 {[%emt 0:00:02]} 14. Nb5 {[%emt 0:11:38]} Bd3 {[%emt 0:18:48]} 15. Re1 {[%emt 0:00:31]} Qa5 {[%emt 0:03:10]} 16. Na3 {[%emt 0:01:31]} Qb4 {[%emt 0:02:06]} 17. d5 {[%emt 0:19:25]} Na5 {[%emt 0:12:47]} 18. Nxc4 {[%emt 0:18:23]} Bxc4 {[%emt 0:02:42]} 19. Qd2 {[%emt 0:00:04]} Qb5 {[%emt 0:13:50]} 20. Nc3 {[%emt 0:04:02]} Bxc3 {[%emt 0:07:43]} 21. Qxc3 {[%emt 0:00:59]} Bxd5 {[%emt 0:00:25]} 22. Bh6 {[%emt 0:00:15]} f6 {[%emt 0:00:03]} 23. Bxf8 {[%emt 0:00:28]} Kxf8 {[%emt 0:00:02]} 24. a4 {[%emt 0:02:40]} Qa6 {[%emt 0:16:06]} 25. Qd2 {[%emt 0:01:20]} e6 {[%emt 0:01:58]} 26. Qf4 {[%emt 0:01:51]} Kg7 {[%emt 0:00:43]} 27. Qc7+ {[%emt 0:00:38]} Kg8 {[%emt 0:00:15]} 28. Rcd1 {[%emt 0:00:22]} Nc6 {[%emt 0:01:05]} 29. h4 {[%emt 0:08:23]} Ne5 {[%emt 0:04:03]} 30. h5 {[%emt 0:04:56]} Qxa4 {[%emt 0:00:56]} 31. Qe7 {[%emt 0:08:34]} Rf8 {[%emt 0:04:06]} 32. Qd6 {[%emt 0:05:15]} Qg4 {[%emt 0:02:21]} 0-1

[Event "Kragero Resort A 2020"]
[Site "Kragero"]
[Date "2020.02.21"]
[Round "6.27"]
[White "Vitenberg, Noam Aviv"]
[Black "Pevar, Andrew"]
[Result "1-0"]
[ECO "A56"]
[WhiteElo "2276"]
[BlackElo "1998"]
[Annotator "NA"]
[PlyCount "35"]
[EventDate "2020.02.19"]
[EventType "swiss"]
[EventCountry "NOR"]
[SourceTitle "playchess.com"]
[Source "ChessBase"]
[SourceQuality "1"]
[TimeControl "5400+30"]

1. d4 {[%emt 0:00:00]} Nf6 {[%emt 0:00:00]} 2. Nf3 {[%emt 0:01:00]} c5 {[%emt 0:00:19]} 3. d5 {[%emt 0:00:33]} d6 {[%emt 0:00:19]} 4. c4 {[%emt 0:01:52]} e5 {[%emt 0:00:20]} 5. Nc3 {[%emt 0:00:49]} Be7 {[%emt 0:00:11]} 6. e4 {[%emt 0:00:48]} Nbd7 {[%emt 0:00:15]} 7. g3 {[%emt 0:00:35]} h6 {[%emt 0:06:21]} 8. Bg2 {[%emt 0:00:17]} Nh7 {[%emt 0:00:52]} 9. Be3 {[%emt 0:01:29]} Bg5 {[%emt 0:00:45]} 10. Nxg5 {[%emt 0:00:23]} hxg5 {[%emt 0:00:33]} 11. h4 {[%emt 0:04:03]} gxh4 {[%emt 0:02:07]} 12. Rxh4 {[%emt 0:00:14]} Ndf6 {[%emt 0:04:20]} 13. Bg5 {[%emt 0:03:42]} Bd7 {[%emt 0:01:40]} 14. Qe2 {[%emt 0:01:14]} Qe7 {[%emt 0:03:44]} 15. O-O-O {[%emt 0:00:31]} O-O-O {[%emt 0:00:14]} 16. Rdh1 {[%emt 0:01:36]} Nxg5 {[%emt 0:06:56]} 17. Rxh8 {[%emt 0:00:12]} Ne8 {[%emt 0:00:31]} 18. f4 {[%emt 0:00:42]} 1-0

[Event "Kragero Resort A 2020"]
[Site "Kragero"]
[Date "2020.02.22"]
[Round "7.12"]
[White "Altarbosh, Ward"]
[Black "Haug, Johannes"]
[Result "1-0"]
[ECO "B11"]
[WhiteElo "2149"]
[BlackElo "2426"]
[Annotator "ChessBase"]
[PlyCount "141"]
[EventDate "2020.02.19"]
[EventType "swiss"]
[EventCountry "NOR"]
[SourceTitle "playchess.com"]
[Source "ChessBase"]
[SourceQuality "1"]
[TimeControl "5400+30"]

1. e4 {[%emt 0:04:06]} c6 {[%emt 0:00:00]} 2. Nf3 {[%emt 0:00:11]} d5 {[%emt 0:00:00]} 3. Nc3 {[%emt 0:00:04]} Nf6 {[%emt 0:00:00]} 4. e5 {[%emt 0:00:11]} Ne4 {[%emt 0:00:00]} 5. Ne2 {[%emt 0:00:00]} Qb6 {[%emt 0:00:32]} 6. d4 {[%emt 0:00:05]} e6 {[%emt 0:00:10]} 7. Ng3 {[%emt 0:00:05]} c5 {[%emt 0:00:17]} 8. c3 {[%emt 0:00:25]} Nc6 {[%emt 0:00:52]} 9. Bd3 {[%emt 0:00:07]} Nxg3 {[%emt 0:00:45]} 10. hxg3 {[%emt 0:00:06]} cxd4 {[%emt 0:00:06]} 11. cxd4 {[%emt 0:00:05]} Bd7 {[%emt 0:00:13]} 12. Kf1 {[%emt 0:00:07]} h6 {[%emt 0:00:50]} 13. g4 {[%emt 0:05:34]} Nb4 {[%emt 0:00:00]} 14. Be2 {[%emt 0:00:16]} Rc8 {[%emt 0:00:21]} 15. Bd2 {[%emt 0:01:34]} Nc2 {[%emt 0:00:11]} 16. Rb1 {[%emt 0:01:54]} Bb5 {[%emt 0:02:01]} 17. Bc3 {[%emt 0:07:37]} Nb4 {[%emt 0:00:57]} 18. a3 {[%emt 0:03:39]} Nc6 {[%emt 0:23:37]} 19. g5 {[%emt 0:02:41]} g6 {[%emt 0:11:44]} 20. Qd2 {[%emt 0:05:02]} h5 {[%emt 0:03:11]} 21. g4 {[%emt 0:01:42]} Be7 {[%emt 0:11:26]} 22. gxh5 {[%emt 0:00:49]} gxh5 {[%emt 0:00:36]} 23. Bxb5 {[%emt 0:00:10]} Qxb5+ {[%emt 0:00:05]} 24. Kg2 {[%emt 0:00:02]} Kd7 {[%emt 0:02:23]} 25. Rh4 {[%emt 0:00:08]} Bxa3 {[%emt 0:03:44]} 26. Rbh1 {[%emt 0:00:14]} Be7 {[%emt 0:00:48]} 27. Rxh5 {[%emt 0:00:04]} Rhg8 {[%emt 0:00:41]} 28. Rh7 {[%emt 0:00:12]} Rcf8 {[%emt 0:00:20]} 29. Qf4 {[%emt 0:00:37]} Ke8 {[%emt 0:02:24]} 30. R7h3 {[%emt 0:07:03]} Qe2 {[%emt 0:07:33]} 31. Rg3 {[%emt 0:05:09]} a5 {[%emt 0:00:00]} 32. Ra1 {[%emt 0:01:54]} b6 {[%emt 0:00:00]} 33. Re1 {[%emt 0:01:21]} Qa6 {[%emt 0:01:12]} 34. Qd2 {[%emt 0:17:44]} a4 {[%emt 0:03:19]} 35. Qc2 {[%emt 0:00:01]} Kd7 {[%emt 0:00:54]} 36. Bd2 {[%emt 0:00:10]} b5 {[%emt 0:02:16]} 37. Ra1 {[%emt 0:01:15]} Rg7 {[%emt 0:05:11]} 38. Be3 {[%emt 0:06:13]} Ra8 {[%emt 0:02:56]} 39. Ne1 {[%emt 0:01:01]} Na5 {[%emt 0:00:52]} 40. Nd3 {[%emt 0:01:32]} Nc4 {[%emt 0:01:44]} 41. Qe2 {[%emt 0:01:04]} Qc6 {[%emt 0:01:18]} 42. f4 {[%emt 0:02:52]} Nxe3+ {[%emt 0:06:06]} 43. Rxe3 {[%emt 0:05:17]} Qc4 {[%emt 0:01:03]} 44. Rc1 {[%emt 0:03:42]} Qxd4 {[%emt 0:05:44]} 45. Nc5+ {[%emt 0:08:49]} Ke8 {[%emt 0:00:00]} 46. Qxb5+ {[%emt 0:00:21]} Kf8 {[%emt 0:00:00]} 47. Rcc3 {[%emt 0:03:04]} Kg8 {[%emt 0:04:50]} 48. Nxe6 {[%emt 0:03:45]} fxe6 {[%emt 0:00:00]} 49. Qc6 {[%emt 0:00:54]} Qd2+ {[%emt 0:00:00]} 50. Kf1 {[%emt 0:02:34]} Qd1+ {[%emt 0:00:00]} 51. Re1 {[%emt 0:00:45]} Qg4 {[%emt 0:00:00]} 52. Qxa8+ {[%emt 0:00:08]} Kf7 {[%emt 0:00:00]} 53. Qh8 {[%emt 0:01:23]} Qxf4+ {[%emt 0:00:00]} 54. Ke2 {[%emt 0:00:01]} Qxe5+ {[%emt 0:01:31]} 55. Kd1 {[%emt 0:00:10]} Qd4+ {[%emt 0:00:48]} 56. Kc1 {[%emt 0:01:24]} Bxg5+ {[%emt 0:01:53]} 57. Kb1 {[%emt 0:00:00]} Bf4 {[%emt 0:00:20]} 58. Rf1 {[%emt 0:00:36]} Kg6 {[%emt 0:00:41]} 59. Qe8+ {[%emt 0:00:37]} Kg5 {[%emt 0:00:25]} 60. Qxe6 {[%emt 0:00:44]} Rb7 {[%emt 0:00:36]} 61. Qg8+ {[%emt 0:00:28]} Rg7 {[%emt 0:00:30]} 62. Qd8+ {[%emt 0:00:19]} Kg4 {[%emt 0:00:25]} 63. Qc8+ {[%emt 0:00:05]} Kg5 {[%emt 0:00:01]} 64. Qe6 {[%emt 0:00:33]} Rg6 {[%emt 0:01:20]} 65. Qe7+ {[%emt 0:00:24]} Kg4 {[%emt 0:00:00]} 66. Qe2+ {[%emt 0:00:08]} Kf5 {[%emt 0:01:25]} 67. Qh5+ {[%emt 0:01:09]} Rg5 {[%emt 0:00:00]} 68. Qh7+ {[%emt 0:00:43]} Ke6 {[%emt 0:00:21]} 69. Rc6+ {[%emt 0:00:23]} Ke5 {[%emt 0:00:21]} 70. Qe7+ {[%emt 0:00:01]} Kf5 {[%emt 0:00:03]} 71. Qe6# {[%emt 0:00:03]} 1-0

[Event "Kragero Resort A 2020"]
[Site "Kragero"]
[Date "2020.02.22"]
[Round "7.13"]
[White "Shehzad, Shazil"]
[Black "Tryggestad, Andreas Garberg"]
[Result "1-0"]
[ECO "B48"]
[WhiteElo "2144"]
[BlackElo "2380"]
[Annotator "ChessBase"]
[PlyCount "63"]
[EventDate "2020.02.19"]
[EventType "swiss"]
[EventCountry "NOR"]
[SourceTitle "playchess.com"]
[Source "ChessBase"]
[SourceQuality "1"]
[TimeControl "5400+30"]

1. e4 {[%emt 0:00:00]} c5 {[%emt 0:00:00]} 2. Nf3 {[%emt 0:00:00]} e6 {[%emt 0:00:00]} 3. d4 {[%emt 0:00:00]} cxd4 {[%emt 0:00:00]} 4. Nxd4 {[%emt 0:00:00]} Nc6 {[%emt 0:00:00]} 5. Nc3 {[%emt 0:00:08]} Qc7 {[%emt 0:00:03]} 6. Be3 {[%emt 0:00:31]} Nf6 {[%emt 0:00:06]} 7. a3 {[%emt 0:00:22]} Be7 {[%emt 0:00:38]} 8. f4 {[%emt 0:03:21]} d6 {[%emt 0:01:51]} 9. Qf3 {[%emt 0:00:37]} O-O {[%emt 0:00:46]} 10. O-O-O {[%emt 0:00:55]} Nxd4 {[%emt 0:00:51]} 11. Bxd4 {[%emt 0:00:36]} b6 {[%emt 0:04:49]} 12. Nb5 {[%emt 0:07:27]} Qc6 {[%emt 0:06:07]} 13. Bxf6 {[%emt 0:00:41]} gxf6 {[%emt 0:02:55]} 14. Bd3 {[%emt 0:02:35]} Ba6 {[%emt 0:03:25]} 15. Nd4 {[%emt 0:04:18]} Qb7 {[%emt 0:00:54]} 16. Bxa6 {[%emt 0:00:58]} Qxa6 {[%emt 0:00:02]} 17. f5 {[%emt 0:04:22]} e5 {[%emt 0:01:06]} 18. Nc6 {[%emt 0:01:19]} Rfe8 {[%emt 0:05:43]} 19. Rd3 {[%emt 0:02:18]} Bf8 {[%emt 0:03:25]} 20. Nb4 {[%emt 0:04:46]} Qa4 {[%emt 0:02:35]} 21. Nd5 {[%emt 0:05:33]} Bg7 {[%emt 0:00:24]} 22. h4 {[%emt 0:03:19]} Rac8 {[%emt 0:00:47]} 23. c3 {[%emt 0:01:55]} Rc5 {[%emt 0:05:26]} 24. g4 {[%emt 0:02:15]} Qb3 {[%emt 0:01:24]} 25. Kb1 {[%emt 0:08:18]} Ra5 {[%emt 0:06:40]} 26. c4 {[%emt 0:02:27]} Qxc4 {[%emt 0:00:12]} 27. Rc1 {[%emt 0:00:40]} Qa4 {[%emt 0:00:21]} 28. g5 {[%emt 0:01:24]} Kh8 {[%emt 0:01:43]} 29. Qg4 {[%emt 0:07:49]} Rc5 {[%emt 0:00:55]} 30. Rxc5 {[%emt 0:00:57]} bxc5 {[%emt 0:00:03]} 31. gxf6 {[%emt 0:00:34]} Bh6 {[%emt 0:00:20]} 32. Rg3 {[%emt 0:00:16]} 1-0

[Event "Kragero Resort A 2020"]
[Site "Kragero"]
[Date "2020.02.22"]
[Round "7.15"]
[White "Gretarsson, Helgi Ass"]
[Black "Radeva, Viktoria"]
[Result "1/2-1/2"]
[ECO "A07"]
[WhiteElo "2403"]
[BlackElo "2320"]
[Annotator "ChessBase"]
[PlyCount "74"]
[EventDate "2020.02.19"]
[EventType "swiss"]
[EventCountry "NOR"]
[SourceTitle "playchess.com"]
[Source "ChessBase"]
[SourceQuality "1"]
[TimeControl "5400+30"]

1. Nf3 {[%emt 0:00:00]} d5 {[%emt 0:03:25]} 2. g3 {[%emt 0:00:00]} c6 {[%emt 0:00:06]} 3. Bg2 {[%emt 0:00:00]} Bg4 {[%emt 0:00:14]} 4. O-O {[%emt 0:00:00]} Nd7 {[%emt 0:00:10]} 5. h3 {[%emt 0:00:00]} Bxf3 {[%emt 0:02:45]} 6. Bxf3 {[%emt 0:00:00]} Ngf6 {[%emt 0:00:51]} 7. d3 {[%emt 0:02:22]} e5 {[%emt 0:02:12]} 8. Nd2 {[%emt 0:00:09]} Bd6 {[%emt 0:02:40]} 9. e4 {[%emt 0:00:13]} O-O {[%emt 0:00:50]} 10. Bg2 {[%emt 0:13:23]} Qc7 {[%emt 0:01:46]} 11. a4 {[%emt 0:00:23]} Rfe8 {[%emt 0:04:10]} 12. g4 {[%emt 0:06:10]} dxe4 {[%emt 0:07:55]} 13. g5 {[%emt 0:00:12]} Nd5 {[%emt 0:00:35]} 14. Nxe4 {[%emt 0:00:05]} Nf8 {[%emt 0:07:56]} 15. Be3 {[%emt 0:33:09]} Ne6 {[%emt 0:05:43]} 16. a5 {[%emt 0:00:19]} Ndf4 {[%emt 0:04:38]} 17. Qg4 {[%emt 0:01:23]} Kh8 {[%emt 0:07:43]} 18. Ra4 {[%emt 0:01:36]} Rf8 {[%emt 0:08:13]} 19. Kh1 {[%emt 0:12:28]} Be7 {[%emt 0:05:16]} 20. Bf3 {[%emt 0:07:50]} f5 {[%emt 0:04:08]} 21. gxf6 {[%emt 0:00:05]} gxf6 {[%emt 0:00:06]} 22. Qg3 {[%emt 0:17:35]} f5 {[%emt 0:03:05]} 23. Nd2 {[%emt 0:00:01]} Rg8 {[%emt 0:00:46]} 24. Qh2 {[%emt 0:00:02]} Bf6 {[%emt 0:01:07]} 25. Rg1 {[%emt 0:01:59]} Rxg1+ {[%emt 0:04:47]} 26. Kxg1 {[%emt 0:00:02]} Rg8+ {[%emt 0:00:09]} 27. Kf1 {[%emt 0:00:01]} Rg6 {[%emt 0:02:01]} 28. h4 {[%emt 0:03:44]} Qg7 {[%emt 0:03:17]} 29. Bxa7 {[%emt 0:00:31]} Bxh4 {[%emt 0:01:03]} 30. Be3 {[%emt 0:00:08]} Bg5 {[%emt 0:06:05]} 31. a6 {[%emt 0:00:06]} bxa6 {[%emt 0:00:03]} 32. Rxa6 {[%emt 0:00:01]} Rh6 {[%emt 0:01:41]} 33. Ra8+ {[%emt 0:01:12]} Bd8 {[%emt 0:00:50]} 34. Qg3 {[%emt 0:00:36]} Rg6 {[%emt 0:03:31]} 35. Qh2 {[%emt 0:00:02]} Rh6 {[%emt 0:03:25]} 36. Qg3 {[%emt 0:00:01]} Rg6 {[%emt 0:00:40]} 37. Qh2 {[%emt 0:00:05]} Rh6 {[%emt 0:00:05]} 1/2-1/2